bitfinex/quotes_SOLUSD_20250728
["timestamp","ask_amount","ask_price","bid_price","bid_amount"]
[1753686216426,5.16795492,193.51,193.49,6.39002468]
[1753686216733,36.1,193.5,193.43,1.6108]
[1753686216902,36.1,193.5,193.48,5.73002468]
[1753686217331,36.12,193.49,193.46,0.66]
[1753686217539,36.78,193.49,193.45,5.73002468]
[1753686217720,36.78,193.49,193.41,26.66]
[1753686217721,17.72900711,193.48,193.41,26.66]
[1753686217912,6.8339,193.5,193.45,5.73002468]
[1753686218113,17.06900711,193.47,193.46,5.73002468]
[1753686218330,53.22900711,193.47,193.46,6.39002468]
[1753686218626,36.16,193.47,193.46,6.39002468]
[1753686219012,41.32876001,193.47,193.46,6.39002468]
[1753686219608,0.94432314,193.5,193.46,6.39002468]
[1753686219609,0.28432314,193.5,193.46,6.39002468]
[1753686219939,36.16,193.49,193.48,5.73002468]
[1753686220542,41.32822574,193.49,193.48,5.73002468]
[1753686221058,36.16,193.49,193.48,5.73002468]
[1753686221216,36.16,193.49,193.48,6.39002468]
[1753686221538,21.95175134,193.54,193.48,6.39002468]
[1753686221749,21.95175134,193.54,193.52,5.73002468]
[1753686221922,36.18,193.53,193.52,5.73002468]
[1753686222552,41.34715754,193.53,193.52,5.73002468]
[1753686222775,41.34715754,193.53,193.51,5.73002468]
[1753686223654,43.04743403,193.57,193.52,6.39002468]
[1753686223655,37.31740935,193.57,193.52,6.39002468]
[1753686223853,36.18,193.56,193.55,5.73002468]
[1753686224070,36.18,193.56,193.54,5.73002468]
[1753686224746,38.87106201,193.56,193.54,5.73002468]
[1753686224948,44.03745373,193.56,193.54,6.39002468]
[1753686225366,44.03745373,193.56,193.54,5.73002468]
[1753686225552,36.18,193.55,193.54,5.73002468]
[1753686225952,2.69106201,193.56,193.54,6.39002468]
[1753686226159,37.31740935,193.57,193.55,6.39002468]
[1753686226361,36.18,193.56,193.52,5.16721228]
[1753686226871,36.18,193.56,193.51,5.16769159]
[1753686227075,36.18,193.56,193.54,26.0]
[1753686227254,36.18,193.56,193.53,0.66]
[1753686227255,36.18,193.56,193.55,0.66]
[1753686227585,36.28747811,193.56,193.55,6.39002468]
[1753686229473,36.28747811,193.56,193.52,0.7]
[1753686229474,41.45383479,193.56,193.52,0.7]
[1753686229684,41.45383479,193.56,193.54,5.73002468]
[1753686229862,41.45383479,193.56,193.55,5.73002468]
[1753686230783,36.28747811,193.56,193.55,5.73002468]
[1753686230952,36.26747811,193.56,193.55,6.43002468]
[1753686231854,36.26747811,193.56,193.55,5.73002468]
[1753686232781,0.10747811,193.56,193.55,6.43002468]
[1753686232960,0.10747811,193.56,193.55,5.73002468]
[1753686233281,17.06900711,193.55,193.48,0.76]
[1753686233604,47.85385947,193.56,193.48,0.06]
[1753686233605,22.79903179,193.53,193.48,0.06]
[1753686233790,36.18,193.52,193.48,0.06]
[1753686234082,22.79903179,193.51,193.48,0.06]
[1753686234261,36.18,193.5,193.48,0.06]
[1753686234456,17.06900711,193.49,193.48,0.06]
[1753686234992,22.92723285,193.49,193.48,0.06]
[1753686235961,22.23723285,193.49,193.48,0.06]
[1753686236959,22.92723285,193.49,193.48,0.06]
[1753686237392,58.41723285,193.49,193.48,0.06]
[1753686240191,36.87,193.49,193.48,0.06]
[1753686241392,59.10723285,193.49,193.48,0.06]
[1753686242275,22.92723285,193.49,193.48,0.06]
[1753686242488,59.12723285,193.49,193.48,0.06]
[1753686242694,6.14254888,193.49,193.48,0.06]
[1753686242970,42.34254888,193.49,193.48,0.06]
[1753686243272,17.06900711,193.48,193.41,0.7]
[1753686243584,36.2,193.47,193.41,0.7]
[1753686243786,36.89,193.47,193.43,5.73002468]
[1753686243974,36.89,193.47,193.44,5.73002468]
[1753686244166,36.2,193.47,193.44,5.73002468]
[1753686244366,18.37311325,193.49,193.38,6.80392153]
[1753686244367,5.16822574,193.49,193.46,5.73002468]
[1753686244677,36.2,193.48,193.46,0.7]
[1753686244883,36.2,193.48,193.47,5.73002468]
[1753686245418,41.36849286,193.48,193.47,5.73002468]
[1753686246706,41.36849286,193.48,193.45,0.7]
[1753686247015,41.36849286,193.48,193.46,5.73002468]
[1753686247381,41.36849286,193.48,193.42,0.7]
[1753686247382,0.10279572,193.46,193.42,0.7]
[1753686247602,36.2,193.45,193.43,5.73002468]
[1753686248381,36.2,193.45,193.44,5.73002468]
[1753686249203,41.36929439,193.45,193.44,5.73002468]
[1753686250410,36.2,193.45,193.44,5.73002468]
[1753686251608,36.2,193.45,193.44,6.43002468]
[1753686253099,36.2,193.45,193.44,5.73002468]
[1753686253419,36.2,193.45,193.43,5.73002468]
[1753686253420,42.05929439,193.45,193.43,5.73002468]
[1753686254604,3.82375443,193.44,193.43,5.73002468]
[1753686254914,8.99331605,193.44,193.43,5.73002468]
[1753686255308,9.68331605,193.44,193.42,5.73002468]
[1753686255505,40.02375443,193.43,193.42,5.73002468]
[1753686256626,45.1935833,193.43,193.42,5.73002468]
[1753686257311,45.1935833,193.43,193.4,0.06]
[1753686257312,45.8835833,193.43,193.4,0.06]
[1753686257621,42.05982887,193.43,193.42,5.73002468]
[1753686257829,45.88302542,193.43,193.42,5.73002468]
[1753686258712,45.88302542,193.43,193.4,0.06]
[1753686258911,42.05982887,193.43,193.42,5.73002468]
[1753686259121,45.88289558,193.43,193.42,5.73002468]
[1753686259630,45.88289558,193.43,193.41,5.73002468]
[1753686259804,4.54306671,193.42,193.41,5.73002468]
[1753686260009,3.82306671,193.42,193.41,5.73002468]
[1753686260927,45.19316287,193.42,193.41,5.73002468]
[1753686262522,3.82381605,193.42,193.41,6.42002468]
[1753686262728,40.02381605,193.42,193.41,6.42002468]
[1753686263122,45.19391221,193.42,193.41,6.42002468]
[1753686263321,40.02381605,193.42,193.41,5.73002468]
[1753686263519,40.02381605,193.42,193.41,6.42002468]
[1753686263850,45.19391221,193.42,193.41,5.73002468]
[1753686265043,45.91391221,193.42,193.4,5.79002468]
[1753686265351,3.82381605,193.41,193.4,5.79002468]
[1753686265715,3.82381605,193.41,193.4,0.06]
[1753686265716,4.54381605,193.41,193.4,0.06]
[1753686266025,40.00381605,193.41,193.4,5.79002468]
[1753686266615,40.72381605,193.41,193.4,5.79002468]
[1753686267136,48.58689625,193.41,193.4,0.06]
[1753686267335,48.58689625,193.41,193.4,5.79002468]
[1753686267544,48.68483786,193.41,193.4,5.79002468]
[1753686268838,47.98483786,193.41,193.4,5.79002468]
[1753686269246,11.78483786,193.41,193.4,5.79002468]
[1753686269439,47.98483786,193.41,193.4,5.79002468]
[1753686269828,42.81447439,193.41,193.4,5.79002468]
[1753686271165,42.81447439,193.41,193.4,6.48002468]
[1753686271323,40.12175766,193.41,193.4,6.48002468]
[1753686272847,40.10175766,193.41,193.4,12.21004936]
[1753686273044,40.12175766,193.41,193.4,12.21004936]
[1753686274648,40.12175766,193.41,193.4,6.48002468]
[1753686276768,3.92175766,193.41,193.4,12.21004936]
[1753686276941,40.10948254,193.41,193.4,12.21004936]
[1753686277355,40.10948254,193.41,193.4,17.38068017]
[1753686278089,3.92948254,193.41,193.4,18.99538017]
[1753686278581,0.09320586,193.42,193.4,18.99538017]
[1753686278749,0.09390139,193.43,193.41,6.42002468]
[1753686278943,0.09390139,193.43,193.42,5.73002468]
[1753686279259,0.09390139,193.43,193.42,6.42002468]
[1753686279445,0.09390139,193.43,193.42,5.73002468]
[1753686279653,0.09390139,193.43,193.42,6.42002468]
[1753686280049,0.0932721,193.46,193.42,11.59012084]
[1753686280253,0.0932721,193.46,193.45,5.73002468]
[1753686280455,0.09803134,193.47,193.45,5.73002468]
[1753686280643,0.09803134,193.47,193.46,0.69]
[1753686281765,0.09803134,193.47,193.46,6.42002468]
[1753686282063,0.09803134,193.47,193.46,11.58905186]
[1753686282279,0.09803134,193.47,193.46,10.89905186]
[1753686282447,0.09803134,193.47,193.46,11.58905186]
[1753686284548,0.12464893,193.48,193.47,1.5987]
[1753686284745,0.12464893,193.48,193.47,8.01872468]
[1753686285258,0.11270959,193.5,193.47,13.74874936]
[1753686285455,0.11270959,193.5,193.48,12.15004936]
[1753686285659,0.11270959,193.5,193.49,11.46004936]
[1753686285958,0.11270959,193.5,193.49,12.15004936]
[1753686286140,0.11270959,193.5,193.49,17.3182751]
[1753686287269,36.2,193.51,193.49,17.3182751]
[1753686287470,36.31198498,193.51,193.5,12.15004936]
[1753686287649,37.03198498,193.51,193.5,5.73002468]
[1753686288053,37.03198498,193.51,193.45,5.16928479]
[1753686288256,36.97198498,193.51,193.5,5.73002468]
[1753686291269,36.31198498,193.51,193.5,5.73002468]
[1753686291476,36.27198498,193.51,193.5,12.17004936]
[1753686291959,36.27198498,193.51,193.5,17.33800801]
[1753686292691,0.11198498,193.51,193.5,17.33800801]
[1753686293788,0.10060089,193.52,193.5,17.33800801]
[1753686293975,0.09641418,193.54,193.52,5.73002468]
[1753686294175,0.13121083,193.55,193.53,5.73002468]
[1753686294374,0.13121083,193.55,193.54,6.44002468]
[1753686294893,0.13121083,193.55,193.54,5.73002468]
[1753686295395,36.31121083,193.55,193.54,5.47150468]
[1753686295564,36.31121083,193.55,193.54,6.18150468]
[1753686296691,36.31121083,193.55,193.54,5.47150468]
[1753686296892,36.97121083,193.55,193.54,5.47150468]
[1753686297192,42.13783444,193.55,193.54,5.47150468]
[1753686298579,0.28432314,193.53,193.48,5.73002468]
[1753686298782,36.88,193.52,193.48,5.73002468]
[1753686299116,0.66,193.51,193.48,5.73002468]
[1753686299775,0.66,193.5,193.49,5.73002468]
[1753686300373,5.82795865,193.5,193.49,5.79002468]
[1753686300892,5.82795865,193.5,193.49,0.06]
[1753686301099,5.82795865,193.5,193.49,5.79002468]
[1753686301686,36.88,193.52,193.49,5.79002468]
[1753686301896,36.22,193.51,193.5,5.73002468]
[1753686302673,42.04769159,193.51,193.5,5.73002468]
[1753686304125,36.22,193.51,193.5,5.73002468]
[1753686304897,41.38769159,193.51,193.5,5.73002468]
[1753686305778,41.38769159,193.51,193.49,0.06]
[1753686305779,42.04769159,193.51,193.49,0.06]
[1753686306097,5.82795865,193.5,193.49,0.06]
[1753686306799,5.82795865,193.5,193.49,5.79002468]
[1753686307805,36.22,193.51,193.49,6.50002468]
[1753686307997,36.22,193.51,193.5,5.73002468]
[1753686308385,41.38769159,193.51,193.5,5.73002468]
[1753686308591,42.04769159,193.51,193.49,5.79002468]
[1753686308799,42.04769159,193.51,193.49,0.06]
[1753686308800,0.66,193.5,193.49,0.06]
[1753686310381,5.82795865,193.5,193.49,0.06]
[1753686311404,34.6011673,193.5,193.49,1e-08]
[1753686311577,38.32656215,193.5,193.49,1e-08]
[1753686312798,32.59653747,193.5,193.49,1e-08]
[1753686313010,32.59653747,193.5,193.49,5.73002469]
[1753686313011,41.42795865,193.5,193.49,5.73002469]
[1753686313188,5.16795865,193.5,193.49,1e-08]
[1753686313387,41.44795865,193.5,193.49,5.73002469]
[1753686313601,42.10795865,193.5,193.49,1e-08]
[1753686314579,44.79957888,193.5,193.49,1e-08]
[1753686315781,7.85957888,193.5,193.49,5.73002469]
[1753686315987,44.13957888,193.5,193.49,5.73002469]
[1753686316493,2.69162023,193.5,193.49,6.44002469]
[1753686316795,44.13957888,193.5,193.49,5.73002469]
[1753686316998,38.97162023,193.5,193.49,5.73002469]
[1753686317383,44.13957888,193.5,193.49,5.73002469]
[1753686317708,38.97162023,193.5,193.49,5.73002469]
[1753686318221,44.81957888,193.5,193.49,1e-08]
[1753686318794,48.26719416,193.5,193.49,1e-08]
[1753686319120,52.09764395,193.5,193.49,1e-08]
[1753686319490,58.11199177,193.5,193.49,1e-08]
[1753686319695,74.89667574,193.5,193.49,1e-08]
[1753686321520,82.48297574,193.5,193.49,1e-08]
[1753686324427,46.20297574,193.5,193.49,1e-08]
[1753686324729,15.13764395,193.5,193.49,1e-08]
[1753686324940,51.39764395,193.5,193.49,1e-08]
[1753686326925,74.87667574,193.5,193.49,1e-08]
[1753686327129,71.04622595,193.5,193.49,1e-08]
[1753686327453,74.87462397,193.5,193.49,1e-08]
[1753686327678,100.87462397,193.5,193.49,1e-08]
[1753686327976,74.87462397,193.5,193.49,1e-08]
[1753686328972,38.61462397,193.5,193.49,1e-08]
[1753686329157,69.18459929,193.5,193.49,1e-08]
[1753686329364,74.91462397,193.5,193.49,1e-08]
[1753686332380,71.08622595,193.5,193.49,1e-08]
[1753686337233,74.91314175,193.5,193.49,1e-08]
[1753686338026,74.91447218,193.5,193.49,1e-08]
[1753686339322,90.37447218,193.5,193.49,1e-08]
[1753686340828,90.3779552,193.5,193.49,1e-08]
[1753686341022,108.46381478,193.5,193.49,1e-08]
[1753686341204,114.19383946,193.5,193.49,1e-08]
[1753686341404,42.78468397,193.46,193.45,0.06]
[1753686341605,92.33837632,193.46,193.45,0.06]
[1753686341934,93.01837632,193.46,193.45,0.06]
[1753686342115,95.71258389,193.46,193.45,0.06]
[1753686342318,95.71258389,193.46,193.41,0.66]
[1753686342507,5.73002468,193.43,193.37,1.6161]
[1753686342705,5.73002468,193.43,193.33,398.30365455]
[1753686342706,5.17063081,193.4,193.38,0.66]
[1753686342908,36.26,193.39,193.38,0.66]
[1753686344346,36.26,193.39,193.35,5.73002468]
[1753686344512,36.26,193.39,193.38,0.66]
[1753686345017,41.43089818,193.39,193.38,0.66]
[1753686345613,41.43089818,193.39,193.35,6.39002468]
[1753686345913,41.43089818,193.39,193.36,0.66]
[1753686346107,36.24,193.38,193.37,5.73002468]
[1753686346511,36.24,193.38,193.37,0.66]
[1753686347437,41.41116558,193.38,193.37,0.66]
[1753686347732,41.41116558,193.38,193.34,6.39002468]
[1753686347931,41.41116558,193.38,193.33,392.04545455]
[1753686347932,187.71116558,193.38,193.35,0.66]
[1753686348136,17.06900711,193.37,193.33,392.04545455]
[1753686348307,0.28432314,193.35,193.33,392.04545455]
[1753686348514,182.84432314,193.34,193.33,392.04545455]
[1753686348858,205.35903179,193.34,193.33,392.04545455]
[1753686349130,64.91126723,193.34,193.33,392.04545455]
[1753686349341,28.65126723,193.34,193.33,362.38625248]
[1753686349516,68.43421873,193.34,193.33,362.38625248]
[1753686350202,64.99126723,193.34,193.33,362.38625248]
[1753686350420,68.43199367,193.34,193.33,334.05665978]
[1753686350609,68.4318347,193.34,193.33,334.05665978]
[1753686350917,68.4318347,193.34,193.33,282.85752491]
[1753686350918,11.18658326,193.34,193.33,282.85752491]
[1753686351115,31.45655858,193.34,193.33,282.85752491]
[1753686351415,68.38704047,193.34,193.33,282.85752491]
[1753686351606,68.52920204,193.34,193.33,282.85752491]
[1753686352307,28.65126723,193.34,193.33,282.85752491]
[1753686352520,65.13126723,193.34,193.33,282.85752491]
[1753686353835,65.13126723,193.34,193.33,223.38292441]
[1753686354027,65.13126723,193.34,193.33,160.47685637]
[1753686354227,65.13126723,193.34,193.33,128.06854519]
[1753686354430,80.59126723,193.34,193.33,94.84393944]
[1753686354738,84.40918693,193.34,193.33,27.80552633]
[1753686355030,84.40918693,193.34,193.33,1e-08]
[1753686355210,80.59126723,193.34,193.33,1e-08]
[1753686355635,83.29200876,193.34,193.33,1e-08]
[1753686355934,87.10732568,193.34,193.33,1e-08]
[1753686356130,83.29200876,193.34,193.33,1e-08]
[1753686356328,87.10497531,193.34,193.33,1e-08]
[1753686357336,51.14130711,193.3,193.18,0.72]
[1753686357545,123.52762876,193.3,193.29,1e-08]
[1753686357724,134.20762876,193.3,193.29,1e-08]
[1753686357916,81.99760408,193.3,193.29,1e-08]
[1753686358234,118.47760408,193.3,193.29,1e-08]
[1753686358731,124.20762876,193.3,193.29,1e-08]
[1753686358933,103.01760408,193.3,193.29,1e-08]
[1753686359234,81.99760408,193.3,193.29,1e-08]
[1753686359420,118.49760408,193.3,193.29,1e-08]
[1753686360421,57.78530408,193.3,193.29,1e-08]
[1753686360732,94.27485691,193.3,193.29,1e-08]
[1753686361334,94.95485691,193.3,193.29,1e-08]
[1753686361839,94.27485691,193.3,193.29,1e-08]
[1753686362318,96.96839077,193.3,193.29,1e-08]
[1753686364213,60.46839077,193.3,193.29,1e-08]
[1753686364415,43.6837068,193.3,193.29,0.72000001]
[1753686364632,80.1837068,193.3,193.29,0.72000001]
[1753686364809,80.1837068,193.3,193.29,1e-08]
[1753686366216,43.6837068,193.3,193.29,0.72000001]
[1753686366542,80.1837068,193.3,193.29,0.72000001]
[1753686367239,43.6837068,193.3,193.29,0.72000001]
[1753686367421,74.43368212,193.3,193.29,0.72000001]
[1753686367627,80.1637068,193.3,193.29,0.72000001]
[1753686367824,43.6837068,193.3,193.29,0.72000001]
[1753686368141,80.1637068,193.3,193.29,0.72000001]
[1753686369741,6.49605324,193.3,193.29,6.45002469]
[1753686369943,39.23353386,193.3,193.29,6.45002469]
[1753686370528,39.23353386,193.3,193.29,0.72000001]
[1753686371116,48.75937344,193.3,193.29,1e-08]
[1753686371323,54.75484075,193.3,193.29,1e-08]
[1753686371757,54.07484075,193.3,193.29,1e-08]
[1753686372250,48.2426545,193.3,193.29,0.72000001]
[1753686372544,53.97267918,193.3,193.29,0.72000001]
[1753686373536,17.39267918,193.3,193.29,1e-08]
[1753686373851,54.25700232,193.3,193.29,1e-08]
[1753686374229,71.72168629,193.3,193.29,1e-08]
[1753686374546,77.45171097,193.3,193.29,1e-08]
[1753686374742,80.8683164,193.3,193.29,1e-08]
[1753686375120,84.66486038,193.3,193.29,1e-08]
[1753686375322,100.12486038,193.3,193.29,1e-08]
[1753686375749,52.78468397,193.26,193.17,0.72]
[1753686375931,5.73002468,193.19,193.17,0.72]
[1753686376121,40.3758149,193.18,193.17,0.72]
[1753686376343,40.3758149,193.18,193.15,2.3654]
[1753686376344,5.17678728,193.17,193.15,2.3654]
[1753686376652,5.17652062,193.18,193.15,1.6454]
[1753686376853,3.7948538,193.17,193.16,5.73002468]
[1753686377046,36.58,193.17,193.16,6.45002468]
[1753686377745,36.90526373,193.23,193.16,6.45002468]
[1753686377920,3.79555036,193.22,193.18,5.73002468]
[1753686378120,3.79555036,193.22,193.19,0.69]
[1753686378121,36.58,193.21,193.19,0.69]
[1753686378321,36.58,193.2,193.19,0.69]
[1753686378536,31.17523905,193.23,193.19,0.69]
[1753686378755,40.37599392,193.22,193.15,1.6454]
[1753686378945,3.79599392,193.21,193.2,0.69]
[1753686379126,36.58,193.21,193.2,0.69]
[1753686379325,40.37599392,193.21,193.2,0.69]
[1753686379852,40.37599392,193.21,193.17,5.73002468]
[1753686380052,3.79599392,193.2,193.18,0.69]
[1753686380232,36.58,193.19,193.17,5.73002468]
[1753686380841,36.58,193.19,193.18,0.69]
[1753686381061,40.37734377,193.19,193.18,0.69]
[1753686381658,3.79734377,193.19,193.18,6.42002468]
[1753686381856,40.37734377,193.19,193.18,6.42002468]
[1753686382445,40.37734377,193.19,193.18,0.69]
[1753686383652,45.55359512,193.19,193.16,5.73002468]
[1753686383856,3.79734377,193.18,193.16,5.73002468]
[1753686384051,36.58,193.17,193.16,6.42002468]
[1753686384258,40.37734377,193.17,193.16,0.69]
[1753686384564,40.37734377,193.17,193.16,6.42002468]
[1753686385071,3.79734377,193.17,193.16,6.42002468]
[1753686385242,36.56,193.17,193.16,6.42002468]
[1753686385440,40.36759346,193.17,193.16,6.42002468]
[1753686385839,3.80759346,193.17,193.16,6.42002468]
[1753686386059,36.56,193.17,193.16,6.42002468]
[1753686386358,40.36759346,193.17,193.16,6.42002468]
[1753686386945,40.36759346,193.17,193.15,1.6454]
[1753686387150,3.80759346,193.16,193.15,1.6454]
[1753686387460,3.80759346,193.16,193.13,5.73002468]
[1753686387684,36.56,193.15,193.13,6.42002468]
[1753686388153,36.56,193.15,193.11,464.01515152]
[1753686388360,36.56,193.15,193.14,6.42002468]
[1753686391561,36.56,193.15,193.14,5.73002468]
[1753686391736,36.56,193.15,193.14,6.42002468]
[1753686392064,36.56,193.15,193.11,464.01515152]
[1753686392367,36.56,193.15,193.14,5.73002468]
[1753686393236,36.56,193.15,193.12,0.69]
[1753686393432,151.47684948,193.17,193.14,5.73002468]
[1753686393667,36.54,193.16,193.14,5.73002468]
[1753686393838,151.47684948,193.17,193.14,5.73002468]
[1753686394035,36.54,193.16,193.13,6.42002468]
[1753686394334,146.3,193.15,193.12,5.73002468]
[1753686394539,36.54,193.14,193.12,5.73002468]
[1753686395161,36.54,193.14,193.11,464.01515152]
[1753686395162,0.72,193.13,193.11,464.01515152]
[1753686395355,36.54,193.12,193.11,464.01515152]
[1753686398179,36.54,193.12,193.11,469.7451762]
[1753686398342,36.54,193.12,193.11,470.4351762]
[1753686398962,36.54,193.12,193.11,469.7451762]
[1753686399165,36.54,193.12,193.11,435.30413623]
[1753686399166,49.00479968,193.12,193.11,435.30413623]
[1753686399366,78.35758521,193.12,193.11,435.30413623]
[1753686399579,35.00323739,193.12,193.11,435.30413623]
[1753686399765,162.03207188,193.19,193.11,441.72416091]
[1753686399766,10.90654398,193.18,193.11,441.72416091]
[1753686399946,40.46311473,193.17,193.12,0.69]
[1753686400292,40.46311473,193.17,193.11,435.30413623]
[1753686400293,4.45311473,193.16,193.11,441.03416091]
[1753686400450,36.66,193.15,193.11,441.03416091]
[1753686400843,36.66,193.15,193.11,441.72416091]
[1753686401072,36.66,193.15,193.12,0.69]
[1753686401772,51.46769347,193.3,193.14,5.73002468]
[1753686401773,5.29278577,193.2,193.14,5.73002468]
[1753686401950,5.29278577,193.2,193.15,5.73002468]
[1753686401951,40.46401269,193.19,193.15,5.73002468]
[1753686402268,26.0,193.16,193.12,6.42002468]
[1753686402576,36.66,193.15,193.13,6.42002468]
[1753686402789,36.66,193.15,193.14,0.69]
[1753686402993,36.66,193.15,193.14,6.42002468]
[1753686403444,2.69406537,193.16,193.14,6.42002468]
[1753686403641,36.66,193.15,193.11,441.92353623]
[1753686404245,36.66,193.15,193.12,0.69]
[1753686404447,36.66,193.15,193.13,0.69]
[1753686404654,36.66,193.15,193.14,0.69]
[1753686405268,36.66,193.15,193.13,5.73002468]
[1753686405486,36.66,193.15,193.13,6.42002468]
[1753686405651,41.83732885,193.15,193.12,5.73002468]
[1753686405851,42.46732885,193.15,193.11,435.30413623]
[1753686406372,48.19735353,193.15,193.11,435.30413623]
[1753686407551,6.64434782,193.14,193.11,435.30413623]
[1753686407762,43.02002468,193.13,193.11,435.30413623]
[1753686407974,169.72903179,193.12,193.11,435.30413623]
[1753686408675,174.90715937,193.12,193.11,435.30413623]
[1753686408864,178.34869669,193.12,193.11,435.30413623]
[1753686409047,32.04869669,193.12,193.11,435.30413623]
[1753686409456,47.50869669,193.12,193.11,435.30413623]
[1753686410853,87.99025449,193.12,193.11,435.30413623]
[1753686411164,88.03025449,193.12,193.11,435.30413623]
[1753686411470,35.87025449,193.12,193.11,435.30413623]
[1753686411674,69.10871717,193.12,193.11,435.30413623]
[1753686411976,69.12871717,193.12,193.11,435.30413623]
[1753686413665,3.8215578,193.12,193.11,435.36413623]
[1753686413869,36.7,193.12,193.11,436.02413623]
[1753686415073,26.0,193.13,193.11,436.02413623]
[1753686415268,36.7,193.12,193.11,435.36413623]
[1753686415466,42.43002468,193.12,193.11,435.36413623]
[1753686416355,36.7,193.12,193.11,435.36413623]
[1753686416560,36.7,193.12,193.11,436.02413623]
[1753686416780,5.17753574,193.15,193.11,441.75416091]
[1753686416980,40.52390181,193.14,193.11,441.75416091]
[1753686417285,36.7,193.14,193.11,436.02413623]
[1753686417787,3.82512873,193.13,193.12,0.66]
[1753686418182,36.7,193.14,193.12,0.66]
[1753686418366,3.82667266,193.13,193.11,435.36413623]
[1753686418571,3.82667266,193.13,193.11,436.02413623]
[1753686418572,36.68,193.12,193.11,436.02413623]
[1753686418778,40.50667266,193.12,193.11,436.02413623]
[1753686419080,36.68,193.12,193.11,436.02413623]
[1753686420877,40.51017696,193.12,193.11,436.02413623]
[1753686421788,40.51017696,193.12,193.11,435.36413623]
[1753686421999,40.51017696,193.12,193.11,441.75416091]
[1753686422162,36.68,193.12,193.11,441.75416091]
[1753686422490,36.68,193.12,193.11,435.36413623]
[1753686422798,40.50829102,193.12,193.11,436.02413623]
[1753686422969,40.50843734,193.12,193.11,436.02413623]
[1753686423175,40.50844161,193.12,193.11,436.02413623]
[1753686423382,39.37412082,193.12,193.11,436.02413623]
[1753686423579,2.69412082,193.12,193.11,436.02413623]
[1753686423759,39.33412082,193.12,193.11,436.02413623]
[1753686424199,54.071464,193.12,193.11,435.36413623]
[1753686424487,43.16331174,193.12,193.11,435.36413623]
[1753686424860,48.34143932,193.12,193.11,435.36413623]
[1753686425475,43.16331174,193.12,193.11,435.36413623]
[1753686426282,54.071464,193.12,193.11,435.36413623]
[1753686426864,69.48790356,193.12,193.11,435.36413623]
[1753686427159,79.04866938,193.12,193.11,435.36413623]
[1753686427575,42.40866938,193.12,193.11,435.36413623]
[1753686427785,73.3186447,193.12,193.11,435.36413623]
[1753686427970,78.41866938,193.12,193.11,435.36413623]
[1753686428491,78.42062418,193.12,193.11,435.36413623]
[1753686428887,41.78062418,193.12,193.11,435.36413623]
[1753686429087,78.42062418,193.12,193.11,435.36413623]
[1753686429466,24.99594021,193.12,193.11,435.36413623]
[1753686429666,57.80324427,193.12,193.11,435.36413623]
[1753686430394,75.21792824,193.12,193.11,435.36413623]
[1753686430907,75.21792824,193.12,193.11,289.06413623]
[1753686431066,75.21792824,193.12,193.11,262.750021]
[1753686431267,75.21792824,193.12,193.11,236.63915401]
[1753686431570,79.05094556,193.12,193.11,236.63915401]
[1753686432381,79.05094556,193.12,193.11,179.8436586]
[1753686432585,100.34097024,193.12,193.11,150.03134892]
[1753686432772,57.97355972,193.12,193.11,150.03134892]
[1753686433298,35.7692119,193.12,193.11,150.03134892]
[1753686433492,74.70916529,193.12,193.11,150.03134892]
[1753686433672,71.16047111,193.12,193.11,150.03134892]
[1753686433873,71.01830954,193.12,193.11,150.03134892]
[1753686434482,71.16047111,193.12,193.11,150.03134892]
[1753686435281,74.99315265,193.12,193.11,150.03134892]
[1753686435994,71.16047111,193.12,193.11,150.03134892]
[1753686436296,74.99273437,193.12,193.11,150.03134892]
[1753686436799,54.37578714,193.12,193.11,150.03134892]
[1753686437512,61.66330722,193.12,193.11,150.03134892]
[1753686438308,58.21435256,193.12,193.11,150.03134892]
[1753686438510,54.38001535,193.12,193.11,150.03134892]
[1753686438685,61.69516468,193.12,193.11,150.03134892]
[1753686439086,58.24435804,193.12,193.11,150.03134892]
[1753686439496,61.69585506,193.12,193.11,150.03134892]
[1753686441801,79.11053903,193.12,193.11,150.03134892]
[1753686442701,78.48053903,193.12,193.11,150.03134892]
[1753686443301,78.4788525,193.12,193.11,150.03134892]
[1753686443477,78.4788525,193.12,193.11,123.22068091]
[1753686443478,94.6688525,193.12,193.11,123.22068091]
[1753686443674,94.0388525,193.12,193.11,123.22068091]
[1753686444491,94.6688525,193.12,193.11,123.22068091]
[1753686444906,94.0388525,193.12,193.11,123.22068091]
[1753686445886,94.6688525,193.12,193.11,123.22068091]
[1753686446304,94.6688525,193.12,193.11,96.02231602]